bitfinex-derivatives/quotes_BTCF0:USTF0_20220102
["timestamp","ask_amount","ask_price","bid_price","bid_amount"]
[1641145540523,0.58892517,47595.0,47594.0,0.03294818]
[1641145541223,0.58892517,47595.0,47594.0,0.40394818]
[1641145541823,0.58892517,47595.0,47594.0,0.22394818]
[1641145542023,0.58892517,47595.0,47594.0,0.40394818]
[1641145542223,0.58892517,47595.0,47594.0,0.22394818]
[1641145542424,0.58892517,47595.0,47594.0,0.03294818]
[1641145543226,0.58892517,47595.0,47594.0,0.22394818]
[1641145544529,0.58892517,47595.0,47594.0,0.03294818]
[1641145545229,0.58892517,47595.0,47594.0,0.22394818]
[1641145545429,0.58892517,47596.0,47594.0,0.34332749]
[1641145545830,0.58892517,47596.0,47595.0,0.01193799]
[1641145547231,0.58892517,47596.0,47595.0,0.20193799]
[1641145547632,1.38435507,47603.0,47595.0,0.19]
[1641145548432,0.08953903,47603.0,47602.0,0.35815376]
[1641145549134,0.27953903,47603.0,47602.0,0.35815376]
[1641145550432,0.08953903,47603.0,47602.0,0.35815376]
[1641145551334,0.46153903,47603.0,47602.0,0.35815376]
[1641145551737,0.28153903,47603.0,47602.0,0.35815376]
[1641145552035,0.28153903,47603.0,47601.0,0.59692293]
[1641145552337,0.46153903,47603.0,47601.0,0.59692293]
[1641145552634,0.26953903,47603.0,47601.0,0.59692293]
[1641145553036,0.08953903,47603.0,47601.0,0.59692293]
[1641145553236,0.28053903,47603.0,47601.0,0.59692293]
[1641145553436,0.08953903,47602.0,47601.0,0.59692293]
[1641145554346,0.191,47603.0,47601.0,0.59692293]
[1641145554547,0.14033567,47604.0,47601.0,0.35815784]
[1641145554750,0.18,47602.0,47601.0,0.35815784]
[1641145555346,0.08953903,47603.0,47601.0,0.35815784]
[1641145557065,0.26953903,47603.0,47601.0,0.35815784]
[1641145557344,0.27953903,47603.0,47601.0,0.35815784]
[1641145557744,0.45953903,47603.0,47601.0,0.35815784]
[1641145558144,0.27953903,47603.0,47601.0,0.35815784]
[1641145558545,0.08953903,47603.0,47601.0,0.35815784]
[1641145558746,0.26953903,47602.0,47600.0,0.59692293]
[1641145559947,0.08953903,47602.0,47600.0,0.59692293]
[1641145560153,0.189,47603.0,47600.0,0.59692293]
[1641145560551,0.14033567,47604.0,47600.0,0.59692293]
[1641145561252,0.33133567,47604.0,47600.0,0.59692293]
[1641145561651,0.08953903,47603.0,47600.0,0.59692293]
[1641145562252,0.08953903,47603.0,47601.0,0.59692293]
[1641145563256,0.28253903,47603.0,47601.0,0.59692293]
[1641145563456,0.28253903,47603.0,47601.0,1.43261504]
[1641145563656,0.28253903,47603.0,47602.0,0.59692293]
[1641145564358,1.57930545,47603.0,47602.0,0.59692293]
[1641145564568,1.38630545,47603.0,47602.0,0.59692293]
[1641145565066,1.56630545,47603.0,47602.0,0.59692293]
[1641145565266,1.74830545,47603.0,47602.0,0.74792293]
[1641145565665,1.56830545,47603.0,47602.0,0.74792293]
[1641145566067,1.56830545,47603.0,47602.0,0.151]
[1641145566068,0.27153903,47603.0,47602.0,0.151]
[1641145566367,0.45153903,47603.0,47602.0,0.151]
[1641145566569,0.08953903,47603.0,47601.0,0.59692293]
[1641145566770,0.26953903,47603.0,47601.0,0.59692293]
[1641145567071,0.08953903,47603.0,47601.0,0.59692293]
[1641145567270,0.27453903,47603.0,47601.0,0.74492293]
[1641145567972,1.38493842,47602.0,47601.0,0.74492293]
[1641145568573,1.38493842,47602.0,47601.0,0.59692293]
[1641145568771,1.56493842,47602.0,47601.0,0.59692293]
[1641145569172,1.75293842,47602.0,47601.0,0.76092293]
[1641145569373,1.57293842,47602.0,47601.0,0.76092293]
[1641145570475,1.38493842,47602.0,47601.0,0.59692293]
[1641145571291,1.56593842,47602.0,47601.0,0.76292293]
[1641145572288,1.47639939,47602.0,47601.0,0.76292293]
[1641145572488,1.29539939,47602.0,47601.0,0.59692293]
[1641145573281,1.47739939,47602.0,47601.0,0.76392293]
[1641145574485,1.29539939,47602.0,47601.0,0.59692293]
[1641145575184,1.29539939,47602.0,47600.0,0.83569211]
[1641145575384,0.26253903,47602.0,47601.0,0.171]
[1641145576483,0.08953903,47602.0,47600.0,0.83569211]
[1641145577084,1.38493842,47602.0,47601.0,0.59697922]
[1641145577288,1.56693842,47602.0,47601.0,0.59697922]
[1641145577689,1.56693842,47602.0,47600.0,1.00269211]
[1641145577888,0.182,47602.0,47600.0,1.00269211]
[1641145578891,0.08953903,47601.0,47600.0,1.00269211]
[1641145579287,0.08953903,47601.0,47600.0,0.99869211]
[1641145580187,0.08953903,47601.0,47600.0,0.163]
[1641145580588,0.08953903,47601.0,47597.0,0.0210092]
[1641145580888,0.181,47598.0,47592.0,1.43269644]
[1641145581088,0.08953903,47601.0,47588.0,0.4253091]
[1641145581089,0.181,47593.0,47591.0,1.43269644]
[1641145581289,0.18,47592.0,47591.0,1.43269644]
[1641145582093,0.18,47592.0,47591.0,1.36779644]
[1641145582292,0.18,47592.0,47588.0,0.4253091]
[1641145582493,0.18,47589.0,47588.0,0.4253091]
[1641145582893,0.18,47589.0,47584.0,0.4253091]
[1641145583094,0.14033567,47585.0,47584.0,0.4253091]
[1641145584094,0.4098747,47585.0,47583.0,0.0311]
[1641145584493,0.4098747,47585.0,47580.0,0.4253091]
[1641145584693,0.18,47581.0,47580.0,0.4253091]
[1641145584895,0.08553,47581.0,47580.0,0.4253091]
[1641145585096,0.08653,47581.0,47580.0,0.4253091]
[1641145585295,0.27553,47581.0,47580.0,0.4253091]
[1641145585496,0.39553,47581.0,47580.0,0.4253091]
[1641145585695,0.27553,47581.0,47576.0,0.16033567]
[1641145585894,0.27453,47581.0,47576.0,0.16033567]
[1641145586094,0.18,47580.0,47576.0,0.16033567]
[1641145586497,0.26953903,47580.0,47576.0,0.16033567]
[1641145587297,0.46353903,47580.0,47576.0,0.16033567]
[1641145587898,0.08953903,47579.0,47576.0,0.16033567]
[1641145589303,0.27553903,47579.0,47576.0,0.16033567]
[1641145590002,0.186,47579.0,47576.0,0.02]
[1641145590206,0.18,47577.0,47576.0,0.02]
[1641145590819,0.26953903,47577.0,47576.0,0.02]
[1641145591204,0.4098747,47577.0,47576.0,0.02]
[1641145591404,0.5958747,47577.0,47576.0,0.02]
[1641145593306,0.5948747,47577.0,47576.0,0.02]
[1641145594709,0.4098747,47577.0,47576.0,0.02]
[1641145595313,0.5958747,47577.0,47576.0,0.02]
[1641145595712,1.89127409,47577.0,47576.0,0.02]
[1641145596514,1.89127409,47577.0,47568.0,0.4253091]
[1641145596715,0.18,47573.0,47568.0,0.4253091]
[1641145597315,0.001,47569.0,47568.0,0.4253091]
[1641145597613,0.09519,47569.0,47568.0,0.4253091]
[1641145597817,0.09519,47569.0,47566.0,0.4253091]
[1641145598013,0.181,47567.0,47566.0,0.4253091]
[1641145598215,0.181,47567.0,47562.0,1.43335024]
[1641145598425,0.09419,47569.0,47562.0,1.43335024]
[1641145598426,0.181,47563.0,47562.0,1.43335024]
[1641145599227,0.001,47563.0,47562.0,1.43335024]
[1641145599425,0.191,47563.0,47562.0,0.01194518]
[1641145599625,0.371,47563.0,47562.0,0.01194518]
[1641145599828,0.191,47563.0,47562.0,0.01194518]
[1641145600029,0.191,47563.0,47561.0,1.43335024]
[1641145600331,0.19,47563.0,47561.0,1.43335024]
[1641145600726,0.14033567,47564.0,47561.0,1.43335024]
[1641145601127,0.14033567,47564.0,47560.0,0.0321]
[1641145601327,0.08953903,47563.0,47560.0,0.0321]
[1641145602529,0.58456724,47561.0,47560.0,0.0321]
[1641145603129,0.08953903,47563.0,47560.0,0.04404535]
[1641145603330,0.175,47561.0,47560.0,0.04404535]
[1641145603631,0.175,47561.0,47560.0,0.0321]
[1641145604129,0.175,47561.0,47560.0,0.0440452]
[1641145604331,0.52782313,47561.0,47560.0,0.0321]
[1641145604731,0.35282313,47561.0,47560.0,0.0321]
[1641145604932,0.35282313,47561.0,47560.0,0.04404481]
[1641145605132,0.58803855,47562.0,47560.0,0.04404481]
[1641145605332,0.177,47561.0,47560.0,0.04404481]
[1641145605535,0.177,47561.0,47560.0,0.0321]
[1641145605933,0.177,47561.0,47560.0,1.46545024]
[1641145606736,0.35334619,47562.0,47560.0,1.46545024]
[1641145607334,0.184,47562.0,47560.0,1.46545024]
[1641145608335,0.184,47562.0,47560.0,1.64545024]
[1641145608636,0.35334619,47563.0,47560.0,1.64545024]
[1641145609537,0.53634619,47563.0,47560.0,1.46545024]
[1641145610137,0.53634619,47563.0,47560.0,1.64545024]
[1641145610338,0.53634619,47563.0,47560.0,1.43335024]
[1641145610741,0.35334619,47563.0,47560.0,1.43335024]
[1641145611358,0.18,47561.0,47560.0,1.43335024]
[1641145611543,0.24253,47561.0,47560.0,1.43335024]
[1641145612643,0.31802058,47561.0,47560.0,1.43335024]
[1641145612842,0.13802058,47561.0,47560.0,1.43335024]
[1641145613043,0.40763364,47561.0,47553.0,3.39120616]
[1641145613246,0.14033567,47558.0,47553.0,1.85877199]
[1641145614246,0.18,47555.0,47553.0,0.42542175]
[1641145614444,0.7748409,47555.0,47551.0,1.43335024]
[1641145615045,0.06,47554.0,47551.0,1.43335024]
[1641145615245,0.14033567,47552.0,47551.0,1.43335024]
[1641145615444,0.14033567,47552.0,47549.0,1.43335024]
[1641145616244,0.35676679,47551.0,47549.0,1.43335024]
[1641145616444,0.35676679,47551.0,47550.0,0.18]
[1641145616646,0.5948409,47553.0,47550.0,0.2685]
[1641145617144,0.5948409,47553.0,47550.0,1.70185024]
[1641145618351,0.5948409,47553.0,47550.0,1.52185024]
[1641145618948,0.5948409,47556.0,47552.0,1.43335024]
[1641145619547,0.181,47553.0,47552.0,1.43335024]
[1641145620648,0.5948409,47556.0,47552.0,1.43335024]
[1641145620852,0.5948409,47556.0,47554.0,0.18]
[1641145621053,0.5948409,47556.0,47553.0,0.011946]
[1641145621252,0.5948409,47556.0,47555.0,0.011946]
[1641145621449,0.183,47556.0,47555.0,0.011946]
[1641145621650,0.183,47556.0,47554.0,1.44529624]
[1641145622052,0.183,47556.0,47555.0,0.011946]
[1641145622651,0.73517657,47558.0,47555.0,0.011946]
[1641145623455,0.92017657,47558.0,47555.0,0.011946]
[1641145623663,0.32533567,47558.0,47555.0,0.60828888]
[1641145624054,0.32533567,47558.0,47555.0,0.59634288]
[1641145624856,0.14033567,47558.0,47555.0,0.59634288]
[1641145625455,0.32533567,47558.0,47554.0,0.59634288]
[1641145626757,0.14033567,47558.0,47554.0,0.59634288]
[1641145627157,0.14033567,47558.0,47555.0,0.35782193]
[1641145627557,0.32233567,47558.0,47555.0,0.35782193]
[1641145628759,0.14033567,47558.0,47555.0,0.35782193]
[1641145628961,0.14033567,47558.0,47556.0,0.35782193]
[1641145629164,0.18,47557.0,47556.0,0.05572193]
[1641145629363,0.40401192,47557.0,47542.0,0.42542175]
[1641145629564,0.18,47545.0,47542.0,0.42542175]
[1641145629763,0.24699,47545.0,47542.0,0.42542175]
[1641145630162,0.001,47544.0,47542.0,0.42542175]
[1641145630362,0.001,47544.0,47543.0,1.23365024]
[1641145630562,0.001,47544.0,47536.0,1.53243417]
[1641145630762,0.18,47539.0,47536.0,1.53243417]
[1641145630963,0.18,47542.0,47536.0,1.53243417]
[1641145631265,0.14033567,47537.0,47536.0,1.53243417]
[1641145631465,0.14033567,47537.0,47526.0,0.18]
[1641145631664,0.14033567,47537.0,47529.0,0.18]
[1641145632079,0.14033567,47537.0,47530.0,0.01195111]
[1641145632481,0.18,47536.0,47530.0,0.01195111]
[1641145632679,0.02104496,47535.0,47529.0,0.01195111]
[1641145632880,0.02104496,47535.0,47531.0,0.01195111]
[1641145633080,0.14033567,47537.0,47530.0,0.01195111]
[1641145633380,0.18,47535.0,47532.0,0.01195111]
[1641145633581,0.18,47534.0,47531.0,0.01195111]
[1641145633783,0.188,47535.0,47531.0,0.01195111]
[1641145633988,0.188,47535.0,47526.0,0.009794]
[1641145634187,0.188,47535.0,47532.0,0.01195169]
[1641145634387,0.188,47535.0,47529.0,0.01195169]
[1641145634682,0.188,47535.0,47526.0,0.009794]
[1641145634883,0.14033567,47537.0,47530.0,0.01195168]
[1641145635181,0.14033567,47537.0,47529.0,0.01195168]
[1641145635582,0.32833567,47537.0,47529.0,0.01195168]
[1641145635983,0.07041088,47536.0,47529.0,0.01195168]
[1641145636386,0.32833567,47537.0,47529.0,0.01195168]
[1641145636584,0.02104443,47536.0,47529.0,0.01195168]
[1641145636787,0.02104443,47536.0,47525.0,0.02]
[1641145636986,0.02104443,47536.0,47530.0,0.01195229]
[1641145637185,0.32033567,47537.0,47530.0,0.01195229]
[1641145637384,0.32033567,47537.0,47525.0,0.02]
[1641145637385,0.14033567,47531.0,47529.0,0.01195229]
[1641145637785,0.14033567,47531.0,47525.0,0.02]
[1641145637984,0.14033567,47531.0,47530.0,0.01195208]
[1641145638485,0.14033567,47531.0,47529.0,0.01195208]
[1641145639086,0.14033567,47531.0,47529.0,1.44385275]
[1641145639487,0.32033567,47531.0,47529.0,1.44385275]
[1641145639686,0.32033567,47531.0,47530.0,0.01195208]
[1641145640086,0.67534216,47531.0,47530.0,0.01195208]
[1641145640886,0.14033567,47531.0,47530.0,0.01195208]
[1641145641491,0.31933567,47531.0,47528.0,0.01195208]
[1641145641689,0.31933567,47531.0,47527.0,1.43190067]
[1641145641889,0.31933567,47531.0,47529.0,0.01195216]
[1641145642089,0.31933567,47531.0,47528.0,0.01195216]
[1641145642290,0.31933567,47531.0,47530.0,0.01195216]
[1641145642690,0.14033567,47531.0,47529.0,0.01195216]
[1641145642890,0.14033567,47531.0,47530.0,0.01195216]
[1641145643291,0.14033567,47531.0,47529.0,0.01195216]
[1641145643490,0.32333567,47531.0,47529.0,0.01195216]
[1641145643690,0.32333567,47531.0,47530.0,0.01195216]
[1641145644294,0.32333567,47531.0,47526.0,0.01195216]
[1641145644494,0.32333567,47531.0,47525.0,0.02]
[1641145644696,0.32333567,47531.0,47527.0,0.01195233]
[1641145644895,0.14033567,47531.0,47527.0,0.01195233]
[1641145645096,0.14033567,47531.0,47526.0,0.01195233]
[1641145645395,0.14033567,47531.0,47527.0,0.01195233]
[1641145645597,0.32433567,47531.0,47527.0,0.01195233]
[1641145645797,0.32433567,47531.0,47526.0,0.01195233]
[1641145645997,0.32433567,47531.0,47528.0,0.01195233]
[1641145646200,0.32433567,47531.0,47529.0,0.18]
[1641145646601,0.14033567,47537.0,47530.0,0.02174633]
[1641145646804,0.14033567,47537.0,47534.0,0.18]
[1641145647001,0.14033567,47537.0,47531.0,0.01195233]
[1641145647402,0.14033567,47537.0,47530.0,0.15012967]
[1641145647600,0.14033567,47537.0,47534.0,0.193]
[1641145648401,0.001,47535.0,47534.0,0.193]
[1641145648602,0.07925,47535.0,47534.0,0.193]
[1641145648802,0.09929486,47535.0,47534.0,0.193]
[1641145649003,0.09929486,47535.0,47530.0,0.14033567]
[1641145649502,0.09929486,47535.0,47530.0,0.33033567]
[1641145649705,2.40105,47535.0,47530.0,0.33033567]
[1641145650303,0.001,47531.0,47530.0,0.33033567]
[1641145650904,0.001,47531.0,47530.0,0.14033567]
[1641145651505,0.001,47531.0,47530.0,0.19]
[1641145652907,0.001,47531.0,47525.0,0.02]
[1641145653106,2.58105,47535.0,47525.0,0.02]
[1641145653308,0.18,47530.0,47525.0,0.02]
[1641145653508,0.14033567,47531.0,47526.0,0.01195347]
[1641145653710,0.18,47530.0,47526.0,0.01195347]
[1641145653910,0.14033567,47531.0,47525.0,0.212]
[1641145655113,0.14033567,47531.0,47525.0,0.02]
[1641145655312,0.14033567,47531.0,47526.0,0.01195338]
[1641145657412,0.18,47530.0,47526.0,0.01195338]
[1641145657614,0.14033567,47531.0,47526.0,0.20095338]
[1641145657912,2.3228,47535.0,47526.0,0.28774338]
[1641145658112,0.02104486,47535.0,47527.0,0.01195338]
[1641145658515,0.14033567,47537.0,47527.0,0.01195338]
[1641145658914,0.14033567,47537.0,47528.0,0.18]
[1641145659116,0.14033567,47537.0,47527.0,0.01195338]
[1641145659517,0.14033567,47537.0,47527.0,0.20295338]
[1641145659715,0.14033567,47537.0,47529.0,0.01195338]
[1641145659915,0.14033567,47537.0,47528.0,0.01195338]
[1641145660115,0.14033567,47537.0,47530.0,0.01195338]
[1641145660316,0.001,47532.0,47530.0,0.01195338]
[1641145660515,0.14033567,47537.0,47529.0,0.01195338]
[1641145660516,0.001,47531.0,47529.0,0.01195338]
[1641145660715,0.14033567,47537.0,47527.0,0.191]
[1641145660916,0.14033567,47537.0,47526.0,0.10783082]
[1641145661315,0.14033567,47537.0,47528.0,0.01195265]
[1641145661515,0.14033567,47537.0,47528.0,0.18]
[1641145661717,0.14033567,47537.0,47527.0,0.01195265]
[1641145661916,0.14033567,47537.0,47529.0,0.01195265]
[1641145662518,0.18,47536.0,47528.0,0.01195265]
[1641145662917,0.18,47536.0,47525.0,0.029794]
[1641145663118,0.18,47530.0,47525.0,0.02]
[1641145663317,0.259,47530.0,47525.0,0.02]
[1641145663520,0.14033567,47527.0,47525.0,0.02]
[1641145663719,0.14033567,47527.0,47525.0,0.206]
[1641145664120,0.32033567,47527.0,47525.0,0.206]
[1641145665022,0.32033567,47527.0,47525.0,0.02]
[1641145665220,0.14033567,47527.0,47525.0,0.02]
[1641145665622,0.14033567,47527.0,47525.0,0.209]
[1641145668236,0.32033567,47527.0,47525.0,0.209]
[1641145668939,0.32033567,47527.0,47525.0,0.02]
[1641145669139,0.14033567,47527.0,47525.0,0.02]
[1641145669341,0.08968075,47526.0,47525.0,0.02]
[1641145669539,0.08968075,47526.0,47525.0,0.208]
[1641145671039,0.08968075,47526.0,47525.0,0.02]
[1641145671640,0.08968075,47526.0,47525.0,0.209]
[1641145672243,0.32033567,47527.0,47525.0,0.209]
[1641145672841,0.32033567,47527.0,47525.0,0.02]
[1641145673243,0.67408952,47527.0,47525.0,0.02]
[1641145673644,0.67408952,47527.0,47525.0,0.197]
[1641145675042,0.67408952,47527.0,47525.0,0.02]
[1641145675642,0.35375385,47526.0,47525.0,0.195]
[1641145677044,0.35375385,47526.0,47525.0,0.02]
[1641145677546,0.49408952,47527.0,47525.0,0.02]
[1641145677743,0.49408952,47527.0,47525.0,0.205]
[1641145679046,0.49408952,47527.0,47525.0,0.07917]
[1641145679646,0.49408952,47527.0,47525.0,0.26417]
[1641145680348,0.14033567,47527.0,47525.0,0.26417]
[1641145680950,0.14033567,47527.0,47525.0,0.07917]
[1641145681348,0.49408952,47527.0,47525.0,0.07917]
[1641145681748,0.49408952,47527.0,47525.0,0.26217]
[1641145682951,0.49408952,47527.0,47525.0,0.07917]
[1641145683448,0.14033567,47527.0,47525.0,0.07917]
[1641145683651,0.14033567,47527.0,47525.0,0.26217]
[1641145684851,0.14033567,47527.0,47525.0,0.07917]
[1641145685051,0.14033567,47527.0,47525.0,0.02]
[1641145685753,0.14033567,47527.0,47525.0,0.202]
[1641145686855,0.14033567,47527.0,47525.0,0.02]
[1641145687851,0.14033567,47527.0,47525.0,0.204]
[1641145688453,0.08968098,47526.0,47525.0,0.204]
[1641145689154,0.08968098,47526.0,47525.0,0.02]
[1641145689654,0.27568098,47526.0,47525.0,0.204]
[1641145691058,0.27568098,47526.0,47518.0,1.43190067]
[1641145691059,0.20136092,47526.0,47518.0,1.43190067]
[1641145691259,0.20136092,47526.0,47497.0,0.02105355]
[1641145691260,0.18,47519.0,47517.0,1.4348472]
[1641145691557,0.60036092,47526.0,47506.0,0.2346681]
[1641145691558,0.181,47518.0,47506.0,0.2346681]
[1641145691760,0.181,47518.0,47499.0,0.91769482]
[1641145691761,1.101,47517.0,47499.0,0.91769482]
[1641145691958,1.101,47517.0,47499.0,0.76879482]
[1641145692158,1.101,47517.0,47457.0,0.01]
[1641145692159,0.42100701,47500.0,47466.0,0.0314]
[1641145692358,0.18,47476.0,47457.0,1.95875575]
[1641145692558,0.18,47473.0,47462.0,0.54457765]
[1641145692759,0.08426942,47476.0,47472.0,1.79405022]
[1641145692958,0.079827,47475.0,47472.0,1.79405022]
[1641145693161,0.181,47473.0,47472.0,1.79405022]
[1641145693360,0.001,47473.0,47472.0,1.79405022]
[1641145693557,0.181,47473.0,47472.0,1.79405022]
[1641145693758,0.813,47473.0,47457.0,1.87475575]
[1641145693960,0.28067134,47458.0,47457.0,1.87475575]
[1641145694159,0.57555242,47458.0,47452.0,0.70300496]
[1641145694360,0.001,47453.0,47440.0,0.14033567]
[1641145694560,1.42704534,47458.0,47429.0,1.79555187]
[1641145694761,0.18,47437.0,47429.0,0.43455187]
[1641145694962,0.001,47432.0,47429.0,0.43455187]
[1641145695162,0.18,47434.0,47429.0,0.43455187]
[1641145695464,0.001,47430.0,47416.0,1.8243]
[1641145695664,0.00021098,47425.0,47415.0,2.09481051]
[1641145695860,0.27995747,47425.0,47401.0,2.18218313]
[1641145696060,0.001,47420.0,47409.0,1.79635025]
[1641145696260,0.001,47415.0,47409.0,1.79635025]
[1641145696463,0.02210304,47410.0,47409.0,1.79635025]
[1641145696662,0.001,47410.0,47409.0,1.79635025]
[1641145696861,0.00552024,47410.0,47409.0,1.79635025]
[1641145697062,0.18,47424.0,47409.0,1.79635025]
[1641145697063,0.02109295,47426.0,47409.0,1.8272372]
[1641145697261,0.0314,47440.0,47425.0,0.18]
[1641145697463,0.001,47435.0,47421.0,0.4]
[1641145697664,0.38116212,47442.0,47434.0,0.20108138]
[1641145697864,0.34956212,47442.0,47440.0,0.18]
[1641145698066,1.62266167,47441.0,47440.0,0.18]
[1641145698266,1.62166167,47441.0,47437.0,0.18]
[1641145698464,1.62166167,47441.0,47434.0,0.05869]
[1641145699266,0.13943599,47443.0,47439.0,0.18]
[1641145699467,0.001,47440.0,47439.0,0.18]
[1641145699665,0.001,47440.0,47438.0,0.18]
[1641145699867,0.13943599,47443.0,47435.0,0.02108095]
[1641145700068,0.13943599,47443.0,47438.0,0.06]
[1641145700269,0.13943599,47443.0,47437.0,0.18]
[1641145700467,0.13943599,47443.0,47439.0,0.18]
[1641145700668,0.001,47440.0,47435.0,0.02108095]
[1641145700969,0.13943599,47443.0,47434.0,0.24669]
[1641145701168,0.13943599,47443.0,47437.0,0.18]
[1641145701370,0.13943599,47443.0,47434.0,0.05869]
[1641145701569,0.02108876,47436.0,47429.0,1.43799481]
[1641145701767,0.20633599,47443.0,47437.0,0.19]
[1641145701967,0.14133567,47438.0,47437.0,0.19]
[1641145702971,0.28077166,47438.0,47437.0,0.19]
[1641145703271,0.28077166,47438.0,47425.0,0.14033567]
[1641145703473,0.001,47433.0,47425.0,0.14033567]
[1641145703772,0.45577166,47438.0,47437.0,0.173]
[1641145704273,0.45577166,47438.0,47437.0,0.353]
[1641145704776,0.45677166,47438.0,47437.0,0.353]
[1641145704971,0.28077166,47438.0,47437.0,0.18]
[1641145705670,0.28077166,47438.0,47437.0,0.37]
[1641145705871,0.14033567,47444.0,47437.0,0.44965]
[1641145706076,0.14033567,47444.0,47443.0,0.18]
[1641145706670,0.14133567,47444.0,47443.0,0.18]
[1641145707272,0.14133567,47444.0,47437.0,0.14033567]
[1641145707472,0.001,47439.0,47437.0,0.14033567]
[1641145707670,0.001,47438.0,47437.0,0.14033567]
[1641145707871,0.001,47438.0,47437.0,0.32033567]
[1641145708073,0.14033567,47444.0,47437.0,0.32033567]
[1641145708272,0.14033567,47444.0,47439.0,0.18]
[1641145708677,0.14033567,47444.0,47437.0,0.14033567]
[1641145708872,0.14033567,47444.0,47441.0,0.06]
[1641145709372,0.14033567,47444.0,47440.0,0.18]
[1641145709773,0.14033567,47444.0,47441.0,0.188]
[1641145710274,0.14033567,47444.0,47443.0,0.18]
[1641145711474,0.14133567,47444.0,47443.0,0.18]
[1641145711674,0.14133567,47444.0,47443.0,0.191]
[1641145711876,0.14133567,47444.0,47443.0,0.371]
[1641145712276,0.14716607,47444.0,47443.0,0.371]
[1641145712576,0.14616607,47444.0,47443.0,0.371]
[1641145712977,0.14716607,47444.0,47443.0,0.191]
[1641145713178,0.14716607,47444.0,47438.0,0.02107974]
[1641145713378,0.14616607,47444.0,47438.0,0.02107974]
[1641145713784,0.14616607,47444.0,47438.0,0.20907974]
[1641145713982,0.16033567,47449.0,47442.0,0.14033567]
[1641145714181,0.14033567,47458.0,47443.0,0.02107683]
[1641145714380,0.14033567,47458.0,47444.0,0.009794]
[1641145715394,0.00504181,47457.0,47444.0,0.009794]
[1641145715594,0.00504181,47457.0,47452.0,0.02107365]
[1641145715796,0.00504181,47457.0,47452.0,0.09882365]
[1641145715995,0.00504181,47461.0,47453.0,0.14033567]
[1641145716397,0.00504181,47456.0,47453.0,0.14033567]
[1641145716695,0.00504181,47455.0,47453.0,0.14033567]
[1641145717297,0.00504181,47461.0,47453.0,0.14033567]
[1641145717497,0.00504181,47454.0,47453.0,0.14033567]
[1641145717698,0.00504181,47454.0,47453.0,0.33333567]
[1641145717899,0.00504181,47460.0,47453.0,0.33333567]
[1641145718099,0.00504181,47454.0,47453.0,0.33333567]
[1641145718298,0.00504181,47459.0,47453.0,0.33333567]
[1641145718499,0.00504181,47454.0,47453.0,0.33333567]
[1641145718698,4.181e-05,47458.0,47453.0,0.33333567]
[1641145718901,0.14033567,47462.0,47453.0,0.33333567]
[1641145719099,0.14033567,47462.0,47453.0,0.14033567]
[1641145719701,0.24933567,47462.0,47453.0,0.33133567]
[1641145720000,0.18,47460.0,47453.0,0.33133567]
[1641145720200,0.18,47456.0,47453.0,0.33133567]
[1641145720603,0.18,47459.0,47453.0,0.33133567]
[1641145720801,0.24933567,47462.0,47453.0,0.33133567]
[1641145721007,0.18,47459.0,47453.0,0.14033567]
[1641145721210,0.18,47454.0,47453.0,0.14033567]
[1641145721603,0.84387734,47449.0,47445.0,0.02107676]
[1641145722203,0.84387734,47449.0,47448.0,0.14033567]
[1641145723806,0.84387734,47449.0,47448.0,0.33333567]
[1641145724404,1.02387734,47449.0,47448.0,0.33333567]
[1641145724605,0.84387734,47449.0,47448.0,0.33333567]
[1641145725108,0.84387734,47449.0,47448.0,0.14033567]
[1641145725717,0.84387734,47449.0,47448.0,0.33133567]
[1641145726909,1.20387734,47449.0,47448.0,0.191]
[1641145727109,0.009794,47448.0,47435.0,0.02108137]
[1641145727409,0.18,47436.0,47426.0,0.02108511]
[1641145727714,0.18,47433.0,47426.0,0.02108511]
[1641145727910,0.18,47435.0,47426.0,0.02108511]
[1641145728109,0.18,47435.0,47431.0,0.14033567]
[1641145729113,0.18,47435.0,47427.0,0.009794]
[1641145729410,0.14033567,47441.0,47427.0,0.009794]
[1641145729612,0.14033567,47441.0,47428.0,0.5]
[1641145729911,0.161,47435.0,47429.0,0.5]
[1641145730113,0.161,47435.0,47434.0,0.14033567]
[1641145730619,0.32033567,47446.0,47434.0,0.14033567]
[1641145730814,0.18,47439.0,47434.0,0.16141469]
[1641145731014,0.18,47439.0,47434.0,0.14033567]
[1641145731820,0.18,47439.0,47434.0,0.33533567]
[1641145733216,0.18,47439.0,47434.0,0.14033567]
[1641145733818,0.14033567,47446.0,47438.0,0.18]
[1641145734124,1.51195392,47440.0,47436.0,0.03087474]
[1641145734925,1.51195392,47439.0,47438.0,0.18]
[1641145735117,1.51195392,47439.0,47438.0,0.24276]
[1641145735324,1.51195392,47439.0,47438.0,0.06276]
[1641145735918,1.51195392,47439.0,47438.0,0.25776]
[1641145736126,1.51195392,47441.0,47438.0,0.195]
[1641145736735,0.189794,47444.0,47438.0,0.195]
[1641145736929,0.009794,47444.0,47438.0,0.195]
[1641145737119,0.009794,47444.0,47434.0,0.14033567]
[1641145737321,0.14033567,47446.0,47434.0,0.14033567]
[1641145737521,0.14033567,47446.0,47436.0,0.18]
[1641145737721,0.14033567,47446.0,47436.0,0.20108082]
[1641145738820,1.52079777,47442.0,47436.0,0.20108082]
[1641145739520,1.52079777,47442.0,47439.0,0.18]
[1641145740123,1.52079777,47442.0,47436.0,0.39308082]
[1641145740323,1.52079777,47442.0,47439.0,0.18]
[1641145741521,1.52079777,47442.0,47436.0,0.20108082]
[1641145741721,1.52079777,47442.0,47439.0,0.18]
[1641145741925,1.52079777,47442.0,47439.0,0.191]
[1641145742122,1.52079777,47442.0,47439.0,0.371]
[1641145743023,1.52079777,47442.0,47439.0,0.18]
[1641145743723,1.18719777,47442.0,47439.0,0.18]
[1641145743924,1.18719777,47442.0,47439.0,0.37]
[1641145745226,0.14033567,47446.0,47439.0,0.18]
[1641145745427,0.14033567,47446.0,47436.0,0.20108082]
[1641145745628,0.14033567,47446.0,47438.0,0.18]
[1641145745830,0.14033567,47446.0,47439.0,0.188]
[1641145746928,0.18,47440.0,47439.0,0.188]
[1641145747131,0.0855,47440.0,47434.0,0.14033567]
[1641145747529,0.0855,47440.0,47434.0,0.32033567]
[1641145747728,0.0855,47440.0,47437.0,0.02108022]